bitfinex-derivatives/quotes_SOLF0:USTF0_20250221
["timestamp","ask_amount","ask_price","bid_price","bid_amount"]
[1740125417870,5.69314895,176.85,176.82,0.04253606]
[1740125418072,5.6536,176.84,176.82,0.04253606]
[1740125420173,0.03984895,176.85,176.82,0.04253606]
[1740125420174,5.6539,176.83,176.82,0.04253606]
[1740125422979,15.60177062,176.84,176.82,0.04253606]
[1740125423379,9.94797062,176.84,176.82,0.04253606]
[1740125424874,0.03984895,176.85,176.84,5.6535]
[1740125426372,0.03984895,176.85,176.84,15.60147062]
[1740125426677,9.94797062,176.93,176.88,5.652]
[1740125426982,15.59887062,176.93,176.88,5.652]
[1740125427175,9.94797062,176.93,176.88,5.652]
[1740125427581,0.03949962,176.92,176.89,0.04089362]
[1740125428473,0.03949962,176.92,176.89,5.69259362]
[1740125428677,0.03949962,176.92,176.89,0.04089362]
[1740125429182,9.94797062,176.91,176.89,0.04089362]
[1740125429782,5.6516,176.9,176.89,0.04089362]
[1740125430380,0.03949962,176.92,176.89,0.04089362]
[1740125431778,0.03949962,176.92,176.9,5.6513]
[1740125432284,0.03949962,176.92,176.89,0.04089362]
[1740125433083,0.03949962,176.92,176.89,5.69279362]
[1740125437495,0.03949962,176.92,176.9,5.6515]
[1740125437893,0.03949962,176.92,176.89,0.04089362]
[1740125438191,0.03949962,176.92,176.9,5.6516]
[1740125438694,0.03949962,176.92,176.91,5.6513]
[1740125441001,0.03949962,176.92,176.89,0.04089362]
[1740125441202,0.03949962,176.92,176.9,5.6516]
[1740125441497,0.03949962,176.92,176.89,0.04089362]
[1740125442397,0.03949962,176.92,176.91,5.6513]
[1740125444095,0.03949962,176.92,176.89,0.04089362]
[1740125444297,0.03949962,176.92,176.9,5.6514]
[1740125445502,5.69049962,176.92,176.9,5.6514]
[1740125445805,5.69049962,176.92,176.89,5.69269362]
[1740125446003,5.6516,176.9,176.89,0.04089362]
[1740125448405,5.6529,176.87,176.82,5.6541]
[1740125449006,18.96606025,176.91,176.8,15.52886025]
[1740125449201,17.28976025,176.91,176.8,15.52886025]
[1740125449402,15.52886025,176.91,176.8,15.52886025]
[1740125449600,0.04322913,176.87,176.84,0.04334805]
[1740125450804,5.69612913,176.87,176.84,0.04334805]
[1740125451004,0.04322913,176.87,176.84,0.04334805]
[1740125452203,5.6532,176.85,176.84,0.04334805]
[1740125452598,15.52886025,176.86,176.77,7.77771539]
[1740125453110,5.6547,176.81,176.76,13.43371539]
[1740125453805,0.03557422,176.8,176.77,0.04295451]
[1740125454007,0.03557422,176.8,176.77,5.69865451]
[1740125454205,0.03557422,176.8,176.77,0.04295451]
[1740125455506,0.03557422,176.8,176.77,5.69855451]
[1740125455705,0.03557422,176.8,176.77,0.04295451]
[1740125456306,0.03557422,176.8,176.78,5.6552]
[1740125456808,0.03557422,176.8,176.79,5.6551]
[1740125458099,0.03557422,176.8,176.79,15.60762622]
[1740125461611,0.03557422,176.8,176.77,15.65118073]
[1740125461906,0.03557422,176.8,176.77,9.99548073]
[1740125462208,0.03557422,176.8,176.77,0.04295451]
[1740125462711,5.6551,176.79,176.77,0.04295451]
[1740125463009,0.03557422,176.8,176.77,0.04295451]
[1740125463202,0.03557422,176.8,176.77,5.69865451]
[1740125463599,0.03557422,176.8,176.77,9.99548073]
[1740125464710,0.03557422,176.8,176.79,9.95252622]
[1740125465311,0.03557422,176.8,176.79,15.60762622]
[1740125470511,0.03557422,176.8,176.79,9.95252622]
[1740125470816,0.03557422,176.8,176.78,5.6554]
[1740125472615,0.03557422,176.8,176.77,9.99548073]
[1740125472816,0.03557422,176.8,176.79,5.6551]
[1740125473513,0.03557422,176.8,176.78,5.6554]
[1740125473714,0.03557422,176.8,176.77,9.99548073]
[1740125474019,0.03557422,176.8,176.79,15.60762622]
[1740125481014,0.03557422,176.8,176.77,15.65098073]
[1740125481821,0.03557422,176.8,176.77,0.04295451]
[1740125482221,5.6554,176.79,176.77,0.04295451]
[1740125482421,0.03557422,176.8,176.77,0.04295451]
[1740125484417,5.6555,176.78,176.77,0.04295451]
[1740125487021,15.60772622,176.79,176.77,0.04295451]
[1740125487215,9.95252622,176.79,176.77,0.04295451]
[1740125487529,5.6555,176.78,176.77,0.04295451]
[1740125490921,9.95252622,176.79,176.68,31.1568627]
[1740125491221,9.95252622,176.7,176.68,31.1568627]
[1740125491526,5.6583,176.69,176.68,31.1568627]
[1740125493526,15.64758383,176.7,176.67,0.03883674]
[1740125494825,15.61122622,176.68,176.67,0.03883674]
[1740125495031,9.95252622,176.68,176.67,0.03883674]
[1740125496830,0.03695761,176.7,176.67,0.03883674]
[1740125498226,5.69525761,176.7,176.67,0.03883674]
[1740125499431,9.95252622,176.69,176.67,0.03883674]
[1740125501032,5.6587,176.68,176.67,0.03883674]
[1740125503334,15.61112622,176.69,176.67,0.03883674]
[1740125503926,9.95252622,176.69,176.67,0.03883674]
[1740125504239,5.6587,176.68,176.67,0.03883674]
[1740125505634,15.61112622,176.69,176.67,0.03883674]
[1740125506630,5.6587,176.68,176.67,0.03883674]
[1740125506830,9.95252622,176.69,176.67,0.03883674]
[1740125507730,5.6587,176.68,176.67,0.03883674]
[1740125508325,9.95252622,176.69,176.67,0.03883674]
[1740125509132,15.61082622,176.69,176.67,0.03883674]
[1740125509431,9.95252622,176.69,176.67,0.03883674]
[1740125510838,5.6587,176.68,176.67,0.03883674]
[1740125524253,9.95252622,176.69,176.6,1.8379]
[1740125524554,9.95252622,176.64,176.58,9.95252622]
[1740125524754,9.95252622,176.64,176.58,5.6618]
[1740125525456,0.04056089,176.63,176.59,0.04128429]
[1740125525650,5.6612,176.6,176.59,0.04128429]
[1740125525853,15.61372622,176.6,176.59,0.04128429]
[1740125526055,15.61372622,176.6,176.59,8.429e-05]
[1740125527253,5.6612,176.61,176.59,8.429e-05]
[1740125527454,9.95252622,176.6,176.59,8.429e-05]
[1740125528352,15.61372622,176.6,176.59,8.429e-05]
[1740125528557,9.95252622,176.6,176.59,8.429e-05]
[1740125530858,15.61372622,176.6,176.59,8.429e-05]
[1740125533060,9.95252622,176.6,176.59,8.429e-05]
[1740125534253,0.04056089,176.63,176.59,8.429e-05]
[1740125534459,9.99308711,176.63,176.59,8.429e-05]
[1740125534850,0.04056089,176.63,176.6,9.95252622]
[1740125536059,0.04056089,176.63,176.61,5.6607]
[1740125536757,9.99308711,176.63,176.59,8.429e-05]
[1740125537354,5.6609,176.62,176.59,8.429e-05]
[1740125537562,9.99308711,176.63,176.59,8.429e-05]
[1740125538161,9.95252622,176.61,176.59,8.429e-05]
[1740125539466,5.6612,176.6,176.59,8.429e-05]
[1740125554679,9.95252622,176.61,176.59,8.429e-05]
[1740125554879,0.04056089,176.63,176.59,8.429e-05]
[1740125554880,9.99308711,176.63,176.59,8.429e-05]
[1740125555081,15.65368711,176.63,176.59,8.429e-05]
[1740125555476,15.65368711,176.63,176.59,5.66158429]
[1740125555678,0.04056089,176.63,176.59,9.95261051]
[1740125556183,5.6606,176.62,176.59,8.429e-05]
[1740125557274,9.99308711,176.63,176.59,8.429e-05]
[1740125558480,5.6612,176.6,176.59,8.429e-05]
[1740125558681,9.99308711,176.63,176.59,8.429e-05]
[1740125559180,9.95252622,176.61,176.59,8.429e-05]
[1740125560279,5.6612,176.6,176.59,8.429e-05]
[1740125562174,5.661,176.61,176.59,8.429e-05]
[1740125563185,9.99308711,176.63,176.59,8.429e-05]
[1740125563186,5.6607,176.62,176.59,8.429e-05]
[1740125563477,9.95252622,176.61,176.59,8.429e-05]
[1740125563882,5.6612,176.6,176.59,8.429e-05]
[1740125567488,15.61352622,176.61,176.59,8.429e-05]
[1740125567789,9.95252622,176.61,176.59,8.429e-05]
[1740125568191,5.6612,176.6,176.59,8.429e-05]
[1740125568391,9.95252622,176.61,176.59,8.429e-05]
[1740125570491,9.99308711,176.63,176.59,8.429e-05]
[1740125570696,0.04056089,176.63,176.6,5.6612]
[1740125571295,5.70086089,176.63,176.59,15.61411051]
[1740125572098,5.70086089,176.63,176.59,9.95261051]
[1740125573397,0.04056089,176.63,176.59,9.95261051]
[1740125573596,0.04056089,176.63,176.61,9.95252622]
[1740125573797,0.04056089,176.63,176.61,15.61312622]
[1740125574194,0.04056089,176.63,176.61,9.95252622]
[1740125574793,0.04056089,176.63,176.62,5.6606]
[1740125575396,5.4261,176.74,176.61,9.95252622]
[1740125575597,9.95252622,176.72,176.66,9.95252622]
[1740125576198,9.95252622,176.72,176.64,9.95252622]
[1740125576493,0.03873687,176.7,176.66,9.99323166]
[1740125577197,158.21252622,176.79,176.68,9.95252622]
[1740125577403,158.21252622,176.79,176.73,9.95252622]
[1740125578102,9.95252622,176.77,176.71,9.95252622]
[1740125578301,9.95252622,176.77,176.74,0.03759371]
[1740125579497,5.6564,176.75,176.74,0.03759371]
[1740125580907,9.95252622,176.77,176.74,0.03759371]
[1740125581113,5.6562,176.76,176.74,0.03759371]
[1740125581309,9.95252622,176.77,176.74,0.03759371]
[1740125581710,5.6564,176.75,176.74,0.03759371]
[1740125582616,15.60892622,176.75,176.74,0.03759371]
[1740125585415,5.6564,176.75,176.74,0.03759371]
[1740125590318,0.03682888,176.78,176.74,0.03759371]
[1740125590526,0.03682888,176.78,176.76,9.95252622]
[1740125591020,0.03682888,176.78,176.77,5.6558]
[1740125591220,5.6541,176.83,176.76,9.95252622]
[1740125591424,5.6541,176.83,176.78,9.95252622]
[1740125591622,5.6541,176.83,176.78,15.60772622]
[1740125592324,5.69328306,176.82,176.79,0.03851516]
[1740125592829,0.03908306,176.82,176.79,0.03851516]
[1740125594728,5.6545,176.81,176.79,0.03851516]
[1740125595532,0.03908306,176.82,176.79,0.03851516]
[1740125595931,0.03908306,176.82,176.79,5.69341516]
[1740125596432,15.54860212,176.91,176.79,0.03851516]
[1740125596729,5.6542,176.83,176.79,0.03851516]
[1740125596930,15.54860212,176.91,176.79,0.03851516]
[1740125597325,5.6535,176.85,176.79,0.03851516]
[1740125597636,5.6535,176.85,176.81,5.6544]
[1740125597831,0.03755523,176.86,176.79,0.03851516]
[1740125598835,5.69055523,176.86,176.81,5.6542]
[1740125599135,5.69055523,176.86,176.79,0.03851516]
[1740125600234,0.03755523,176.86,176.79,0.03851516]
[1740125600736,0.03755523,176.86,176.81,15.54860212]
[1740125600931,2.71812353,176.93,176.87,5.6524]
[1740125601336,0.87002353,176.93,176.84,15.54860212]
[1740125601633,0.87002353,176.93,176.89,5.6518]
[1740125601824,6.52092353,176.93,176.89,5.6518]
[1740125602025,0.87002353,176.93,176.84,15.54860212]
[1740125602224,0.91180641,176.93,176.89,0.0434478]
[1740125603031,5.6516,176.9,176.89,0.0434478]
[1740125606149,0.91180641,176.93,176.89,0.0434478]
[1740125606351,6.56250641,176.93,176.89,0.0434478]
[1740125606553,0.91180641,176.93,176.89,0.0434478]
[1740125606741,5.6512,176.92,176.89,0.0434478]
[1740125607240,0.91180641,176.93,176.89,0.0434478]
[1740125608244,0.04178288,176.93,176.89,0.0434478]
[1740125608444,0.04178288,176.93,176.91,5.651]
[1740125608644,0.04178288,176.93,176.89,0.0434478]
[1740125608846,0.04178288,176.93,176.9,5.6514]
[1740125609951,0.04178288,176.93,176.89,5.6953478]
[1740125610154,5.651,176.92,176.89,0.0434478]
[1740125610557,0.04178288,176.93,176.89,0.0434478]
[1740125610753,5.651,176.92,176.89,0.0434478]
[1740125610953,0.04178288,176.93,176.89,0.0434478]
[1740125611254,5.6516,176.91,176.89,0.0434478]
[1740125611656,0.04178288,176.93,176.89,0.0434478]
[1740125611954,5.6516,176.9,176.89,0.0434478]
[1740125614050,0.04178288,176.93,176.89,0.0434478]
[1740125614255,5.6513,176.92,176.89,0.0434478]
[1740125614558,0.04178288,176.93,176.9,9.93794312]
[1740125614959,5.69248288,176.93,176.9,9.93794312]
[1740125615159,0.04178288,176.93,176.9,9.93794312]
[1740125615662,0.04178288,176.93,176.92,9.93794312]
[1740125616261,9.93794312,177.02,176.92,9.93794312]
[1740125616455,9.93794312,177.02,176.96,9.93794312]
[1740125616651,5.6488,176.99,176.95,5.6499]
[1740125617258,5.6475,177.03,176.97,15.51744182]
[1740125617459,0.04038334,176.99,176.97,15.51744182]
[1740125617660,5.3083,177.06,176.97,15.51744182]
[1740125617961,0.04161415,177.03,177.0,0.04279908]
[1740125618662,5.6479,177.02,177.0,0.04279908]
[1740125618960,0.04161415,177.03,177.0,0.04279908]
[1740125619260,5.68911415,177.03,177.0,0.04279908]
[1740125619660,0.04161415,177.03,177.0,0.04279908]
[1740125619965,0.04161415,177.03,177.0,15.5602409]
[1740125620963,5.68911415,177.03,177.0,15.5602409]
[1740125621268,0.04161415,177.03,177.0,0.04279908]
[1740125621669,5.6478,177.02,177.0,0.04279908]
[1740125623070,5.6481,177.01,177.0,0.04279908]
[1740125630777,0.04161415,177.03,177.0,0.04279908]
[1740125630975,5.6478,177.02,177.0,0.04279908]
[1740125632578,5.6481,177.01,177.0,0.04279908]
[1740125634676,5.6478,177.02,177.0,0.04279908]
[1740125635174,0.04161415,177.03,177.0,0.04279908]
[1740125635374,5.6481,177.01,177.0,0.04279908]
[1740125637279,5.6481,177.01,177.0,9.908e-05]
[1740125639280,15.57929073,177.01,177.0,9.908e-05]
[1740125640573,5.651,176.92,176.9,7.81108779]
[1740125640775,5.651,176.92,176.88,17.32454516]
[1740125641180,5.6517,176.9,176.88,15.52794516]
[1740125641375,15.52794516,176.97,176.88,15.52794516]
[1740125641679,0.03907908,176.94,176.91,0.04149402]
[1740125641883,5.651,176.92,176.91,0.04149402]
[1740125644777,5.651,176.92,176.91,9.402e-05]
[1740125645382,7.4605,176.92,176.91,9.402e-05]
[1740125646283,5.6539,176.83,176.8,31.24435116]
[1740125646482,2.74715869,176.92,176.8,31.24435116]
[1740125646483,15.52794516,176.89,176.8,31.24435116]
[1740125647375,0.04219856,176.86,176.83,0.03642737]
[1740125648280,5.6532,176.85,176.83,0.03642737]
[1740125649088,0.04219856,176.86,176.83,0.03642737]
[1740125651689,5.69519856,176.86,176.83,0.03642737]
[1740125651887,0.04219856,176.86,176.83,0.03642737]
[1740125652789,5.6535,176.84,176.83,0.03642737]
[1740125664197,5.6535,176.84,176.83,2.737e-05]
[1740125667191,9.95089755,176.85,176.83,2.737e-05]
[1740125668096,15.60419755,176.85,176.83,2.737e-05]
[1740125670995,5.6535,176.84,176.83,2.737e-05]
[1740125673699,0.04219856,176.86,176.83,9.95092492]
[1740125674098,0.04219856,176.86,176.83,15.60472492]
[1740125675104,0.04219856,176.86,176.83,9.95092492]
[1740125675298,5.6532,176.85,176.83,9.95092492]
[1740125675600,0.04219856,176.86,176.83,2.737e-05]
[1740125676399,5.6535,176.84,176.83,2.737e-05]
[1740125676998,5.6563,176.76,176.74,36.61545116]
[1740125677208,9.95089755,176.79,176.74,31.24435116]
[1740125678103,0.04017275,176.78,176.75,0.04184567]
[1740125684203,5.6541,176.83,176.75,15.59729355]
[1740125684404,5.6541,176.83,176.78,15.55544788]
[1740125685005,5.6541,176.83,176.79,5.6549]
[1740125685210,15.55544788,176.92,176.78,15.55544788]
[1740125685401,0.04174598,176.83,176.82,5.6539]
[1740125685606,5.6525,176.88,176.82,0.03660096]
[1740125686309,22.99544788,176.92,176.82,0.03660096]
[1740125686605,5.652,176.89,176.82,0.03660096]
[1740125686806,0.04043547,176.89,176.82,0.03660096]
[1740125687012,0.04043547,176.89,176.84,5.6533]
[1740125688313,0.04043547,176.89,176.85,5.6529]
[1740125689012,0.04043547,176.89,176.82,0.03660096]
[1740125689412,5.6525,176.88,176.82,0.03660096]
[1740125689608,0.04043547,176.89,176.82,1.72550096]
[1740125689809,15.59588335,176.89,176.82,0.03660096]
[1740125690010,5.6538,176.84,176.82,0.03660096]
[1740125690609,5.69157799,176.85,176.82,0.03660096]
[1740125690813,0.03807799,176.85,176.82,0.03660096]
[1740125691317,0.03807799,176.85,176.82,5.69070096]
[1740125692212,7.799e-05,176.85,176.84,21.20894788]
[1740125692416,9.68532851,176.93,176.84,15.55544788]
[1740125692817,3.5349,176.94,176.86,5.6528]
[1740125693616,0.0367972,176.92,176.88,5.68900201]
[1740125694114,0.0367972,176.92,176.88,0.03680201]
[1740125695518,0.0367972,176.92,176.88,5.68900201]
[1740125696123,5.6877972,176.92,176.88,5.68900201]
[1740125696820,5.6877972,176.92,176.88,0.03680201]
[1740125697622,5.6877972,176.92,176.89,5.6519]
[1740125698122,0.0367972,176.92,176.89,5.6519]
[1740125698521,0.0367972,176.92,176.88,0.03680201]
[1740125698822,0.0367972,176.92,176.9,15.55544788]
[1740125700326,5.6519,176.89,176.88,0.03680201]
[1740125700534,5.6519,176.89,176.88,2.01e-06]
[1740125700730,21.20734788,176.89,176.88,2.01e-06]
[1740125701528,15.55544788,176.89,176.81,31.24435116]
[1740125702432,15.55544788,176.89,176.79,9.1662]
[1740125702632,15.55544788,176.89,176.79,3.5113]
[1740125702933,0.03697852,176.86,176.82,0.04021023]
[1740125705038,5.69017852,176.86,176.82,0.04021023]
[1740125705431,0.03697852,176.86,176.82,0.04021023]
[1740125705734,5.6539,176.83,176.82,0.04021023]
[1740125705924,21.20934788,176.83,176.82,0.04021023]
[1740125706130,21.20934788,176.83,176.82,1.023e-05]
[1740125706926,5.6562,176.76,176.72,1.7072]
[1740125707131,15.55544788,176.79,176.71,33.02185116]
[1740125707331,5.656,176.77,176.71,33.02185116]
[1740125707533,15.55544788,176.79,176.71,33.02185116]
[1740125707935,15.55544788,176.79,176.73,0.03672032]
[1740125708127,0.03878767,176.77,176.73,0.03672032]
[1740125710234,5.69478767,176.77,176.73,0.03672032]
[1740125710438,0.03878767,176.77,176.73,0.03672032]
[1740125710939,5.6565,176.75,176.73,0.03672032]
[1740125711129,0.03878767,176.77,176.73,0.03672032]
[1740125711329,5.6567,176.74,176.73,0.03672032]
[1740125713034,5.6567,176.74,176.73,2.032e-05]
[1740125713537,1.8167,176.75,176.64,1.7043]
[1740125713838,5.6589,176.68,176.63,31.24435116]
[1740125714036,15.55544788,176.72,176.62,323.25197146]
[1740125714037,15.55544788,176.72,176.62,19.05584788]
[1740125714238,15.55544788,176.72,176.63,5.6602]
[1740125714836,5.69642485,176.69,176.66,0.03808315]
[1740125715037,0.03782485,176.69,176.66,0.03808315]
[1740125716639,0.03782485,176.69,176.68,5.6587]
[1740125716938,0.03782485,176.69,176.66,0.03808315]
[1740125717842,5.659,176.67,176.66,0.03808315]
[1740125718543,15.59327273,176.69,176.66,0.03808315]
[1740125720237,21.25187273,176.69,176.66,0.03808315]
[1740125720745,15.59327273,176.69,176.66,0.03808315]
[1740125722045,15.59327273,176.69,176.57,1.8511]
[1740125722439,15.55544788,176.69,176.57,1.8511]
[1740125722940,15.55544788,176.66,176.56,17.26784788]
[1740125723147,0.03826127,176.64,176.61,0.04038971]
[1740125724243,5.6604,176.63,176.61,0.04038971]
[1740125724746,0.03826127,176.64,176.61,0.04038971]
[1740125725637,5.6606,176.62,176.61,0.04038971]
[1740125725845,0.03826127,176.64,176.61,0.04038971]
[1740125726344,5.6606,176.62,176.61,0.04038971]
[1740125726546,0.03826127,176.64,176.61,0.04038971]
[1740125726739,5.6603,176.63,176.61,0.04038971]
[1740125727347,5.6606,176.62,176.61,0.04038971]
[1740125729747,15.55544788,176.63,176.53,15.55544788]
[1740125729950,5.6617,176.59,176.53,15.55544788]
[1740125730149,15.55544788,176.63,176.53,15.55544788]
[1740125730550,5.6616,176.59,176.53,15.55544788]
[1740125730942,5.6616,176.59,176.54,0.03819927]
[1740125731149,0.03607048,176.58,176.54,5.70109927]
[1740125731444,0.03607048,176.58,176.54,0.03819927]
[1740125732551,5.69797048,176.58,176.54,5.70129927]
[1740125733051,0.03607048,176.58,176.54,0.03819927]
[1740125734246,0.03607048,176.58,176.56,15.55544788]
[1740125734554,5.6597,176.65,176.56,15.55544788]
[1740125734849,15.55544788,176.66,176.56,15.55544788]
[1740125734850,5.6603,176.63,176.56,15.55544788]
[1740125735052,15.55544788,176.66,176.56,15.55544788]
[1740125735451,5.66,176.64,176.6,5.6611]
[1740125735651,0.03608087,176.63,176.6,5.6611]
[1740125736047,5.69638087,176.63,176.59,0.03977412]
[1740125736243,5.69638087,176.63,176.59,5.70117412]
[1740125736447,0.03608087,176.63,176.59,0.03977412]
[1740125736754,0.03608087,176.63,176.6,5.6612]
[1740125736955,0.03608087,176.63,176.59,0.03977412]
[1740125739153,5.663,176.8,176.59,15.595222]
[1740125739460,15.55544788,176.72,176.59,15.55544788]
[1740125739655,15.55544788,176.72,176.6,1.7536]
[1740125739957,15.55544788,176.72,176.64,5.6599]
[1740125740253,15.55544788,176.72,176.62,15.55544788]
[1740125740561,0.03651332,176.7,176.66,0.03970135]
[1740125740957,5.69451332,176.7,176.66,5.69870135]
[1740125741161,0.03651332,176.7,176.66,0.03970135]
[1740125741560,0.03651332,176.7,176.67,5.6589]
[1740125742059,0.03651332,176.7,176.66,0.03970135]
[1740125742960,0.03651332,176.7,176.69,5.6583]
[1740125744556,0.03651332,176.7,176.66,0.03970135]
[1740125745255,5.659,176.67,176.66,0.03970135]
[1740125745655,0.03651332,176.7,176.66,0.03970135]
[1740125748661,0.03651332,176.7,176.68,5.6585]
[1740125748863,0.03651332,176.7,176.66,0.03970135]
[1740125749260,0.03651332,176.7,176.66,15.59514923]
[1740125749462,15.55544788,176.79,176.66,15.59514923]
[1740125749765,15.55544788,176.79,176.67,1.8247]
[1740125750061,5.6562,176.76,176.72,5.6571]
[1740125750258,15.55544788,176.79,176.67,1.8247]
[1740125750657,0.04352508,176.74,176.71,5.69787828]
[1740125751863,5.70032508,176.74,176.71,5.69787828]
[1740125752567,5.70032508,176.74,176.71,0.04027828]
[1740125753264,0.04352508,176.74,176.71,0.04027828]
[1740125754562,0.04352508,176.74,176.72,5.6574]
[1740125754862,0.04352508,176.74,176.71,0.04027828]
[1740125755065,0.04352508,176.74,176.71,5.69787828]
[1740125755267,0.04352508,176.74,176.71,0.04027828]
[1740125755564,0.04352508,176.74,176.72,5.6572]
[1740125756867,0.04352508,176.74,176.71,0.04027828]
[1740125757764,0.04352508,176.74,176.73,5.6571]
[1740125760157,2.508e-05,176.74,176.73,5.6571]
[1740125761065,2.508e-05,176.74,176.72,3.4608]
[1740125761567,2.508e-05,176.74,176.71,0.04027828]
[1740125761761,2.508e-05,176.74,176.71,5.69787828]
[1740125762768,2.508e-05,176.74,176.71,0.04027828]
[1740125763665,5.6574,176.72,176.71,0.04027828]
[1740125763867,15.55544788,176.73,176.61,1.7985]
[1740125764163,15.55544788,176.7,176.61,7.4593]
[1740125764358,15.55544788,176.7,176.61,1.7985]
[1740125764761,15.55544788,176.7,176.57,15.55544788]
[1740125764959,6.08083773,176.75,176.55,13.09498779]
[1740125764960,15.55544788,176.67,176.55,13.09498779]
[1740125765166,15.55544788,176.64,176.62,0.03729964]
[1740125765467,15.55544788,176.64,176.55,7.81108779]
[1740125765868,5.6606,176.63,176.55,7.81108779]
[1740125766068,15.55544788,176.64,176.55,7.81108779]
[1740125766468,5.6603,176.63,176.55,13.47388779]
[1740125766669,0.04008194,176.61,176.58,0.04317965]
[1740125768065,15.59552982,176.61,176.58,0.04317965]
[1740125768467,21.25642982,176.61,176.58,0.04317965]
[1740125769169,15.59552982,176.61,176.58,0.04317965]
[1740125769370,5.6613,176.6,176.58,0.04317965]
[1740125770071,21.25642982,176.61,176.58,0.04317965]
[1740125770272,15.59552982,176.61,176.58,0.04317965]
[1740125770869,5.6613,176.6,176.58,0.04317965]
[1740125771068,15.59552982,176.61,176.58,0.04317965]
[1740125771368,5.6612,176.6,176.58,0.04317965]
[1740125771571,15.59552982,176.61,176.58,0.04317965]
[1740125771970,21.25642982,176.61,176.58,0.04317965]
[1740125773267,5.6612,176.6,176.58,0.04317965]
[1740125773672,15.59552982,176.61,176.58,0.04317965]
[1740125774478,5.6615,176.6,176.58,0.04317965]
[1740125774977,15.59552982,176.61,176.58,0.04317965]
[1740125775175,5.6612,176.6,176.58,0.04317965]
[1740125775476,15.59552982,176.61,176.58,0.04317965]
[1740125775876,5.6615,176.59,176.58,0.04317965]
[1740125776772,5.6615,176.6,176.58,0.04317965]
[1740125776972,15.59552982,176.61,176.58,0.04317965]
[1740125777474,5.6612,176.6,176.58,0.04317965]
[1740125777673,15.59552982,176.61,176.58,0.04317965]
[1740125778376,5.6612,176.6,176.58,0.04317965]
[1740125779079,15.59552982,176.61,176.58,0.04317965]
[1740125779277,21.25652982,176.61,176.58,0.04317965]
[1740125780277,0.04008194,176.61,176.58,0.04317965]
[1740125782088,15.59552982,176.61,176.58,0.04317965]
[1740125782976,0.04008194,176.61,176.58,0.04317965]
[1740125783577,5.70098194,176.61,176.58,0.04317965]
[1740125784281,0.04008194,176.61,176.58,5.70497965]
[1740125785977,0.04008194,176.61,176.58,0.04317965]
[1740125787486,5.6615,176.59,176.58,0.04317965]
[1740125788284,15.59552982,176.61,176.45,23.3100337]
[1740125788479,15.55544788,176.54,176.45,23.3100337]
[1740125789075,15.55544788,176.57,176.45,23.3100337]
[1740125789385,1.7895,176.58,176.52,5.6637]
[1740125789586,0.04321799,176.53,176.51,15.55544788]
[1740125789777,23.01544788,176.6,176.51,15.55544788]
[1740125789982,5.6616,176.59,176.54,5.6629]
[1740125790279,23.01544788,176.6,176.51,15.55544788]
[1740125790484,5.6619,176.58,176.53,5.6634]
[1740125790887,0.03667769,176.57,176.54,0.03636772]
[1740125791084,5.69887769,176.57,176.54,0.03636772]
[1740125791277,15.59212557,176.57,176.54,0.03636772]
[1740125791886,5.6628,176.55,176.54,0.03636772]
[1740125793388,5.6643,176.51,176.42,15.55544788]
[1740125793683,15.55544788,176.54,176.42,15.55544788]
[1740125794082,5.6641,176.51,176.45,5.6658]
[1740125794279,15.55544788,176.51,176.42,15.55544788]
[1740125794478,15.55544788,176.51,176.46,0.04050202]
[1740125794688,0.03735401,176.5,176.46,0.04050202]
[1740125795084,5.70185401,176.5,176.46,0.04050202]
[1740125795291,0.03735401,176.5,176.46,0.04050202]
[1740125798787,5.6648,176.49,176.46,0.04050202]
[1740125798989,0.03735401,176.5,176.46,0.04050202]
[1740125799784,5.6648,176.49,176.46,0.04050202]
[1740125799989,0.03735401,176.5,176.46,0.04050202]
[1740125800387,5.665,176.49,176.46,0.04050202]
[1740125800681,0.03735401,176.5,176.46,0.04050202]
[1740125802086,5.6625,176.56,176.52,5.6636]
[1740125802288,15.55544788,176.6,176.48,15.55544788]
[1740125802486,15.55544788,176.6,176.49,1.7471]
[1740125802692,5.6616,176.59,176.54,5.663]
[1740125803095,15.55544788,176.6,176.49,1.7471]
[1740125803290,5.6623,176.57,176.55,0.04261168]
[1740125804492,0.04208685,176.58,176.55,0.04261168]
[1740125804702,5.6625,176.56,176.55,0.04261168]
[1740125805094,5.6622,176.57,176.55,0.04261168]
[1740125805290,0.04208685,176.58,176.55,0.04261168]
[1740125806489,5.6625,176.56,176.55,0.04261168]
[1740125806892,24.95161614,176.56,176.47,1.6794]
[1740125807491,1.6835,176.58,176.47,1.6794]
[1740125808196,0.03804421,176.54,176.51,0.04001002]
[1740125808602,0.03804421,176.54,176.53,5.6635]
[1740125808991,0.03804421,176.54,176.51,0.04001002]
[1740125809293,0.03804421,176.54,176.52,5.6637]
[1740125810093,0.03804421,176.54,176.51,0.04001002]
[1740125810399,5.6635,176.53,176.51,0.04001002]
[1740125810588,0.03804421,176.54,176.51,0.04001002]
[1740125810788,5.70144421,176.54,176.51,0.04001002]
[1740125811196,0.03804421,176.54,176.51,0.04001002]